Cogmind - Beta 11 X10 @@@ ROGUE MODE // 2022.03.05 @ 20:01:52 Player: maxwell Result: Self-destructed Performance ------------- Evolutions (4) 2000 Regions Visited (13) 2600 Robots Destroyed (291) 1455 Value Destroyed (9046) 9046 Prototype IDs (52) 1040 Alien Tech Used (0) 0 Bonus (87) 87 TOTAL SCORE: 16228 Bonus ------- High Alert Combat Kills 1314 Follower Combat Kills 60 Aligned with FarCom 300 Met Data Miner 300 Friendly Fire -1887 Cogmind --------- Core Integrity 392/850 Matter 12/300 Energy 65/100 System Corruption 10% Temperature Cool (9) Movement Core (200) Ox3 Location -6/Factory Parts ------- > --- POWER (1) -------- (None) > --- PROPULSION (6) --- (None) > --- UTILITY (5) ------ Advanced Targeting Computer Improved Target Analyzer > --- WEAPON (3) ------- Improved Heavy Machine Gun Improved Heavy Machine Gun Improved Heavy Machine Gun > --- INVENTORY (5) ---- Advanced Heat Sink Humpback Autogun Heavy Machine Gun Peak State ------------ > --- POWER ------------ Light Angular Momentum Engine > --- PROPULSION ------- Improved Medium Treads Flexi-carbon Leg Armored Leg Enhanced Flexi-carbon Leg Armored Huge Wheel > --- UTILITY ---------- Humpback Advanced Targeting Computer Improved Target Analyzer Makeshift Cloaking Device > --- WEAPON ----------- Heavy Machine Gun Improved Heavy Machine Gun Improved Grenade Launcher > --- INVENTORY -------- Improved Deuterium Engine Armored Huge Wheel Advanced Heat Sink Huge Storage Unit Humpback Superbattery Structural Scanner Structural Scanner Advanced Signal Interpreter Recoil Stabilizer Advanced Particle Charger Light Regenerative Plating Graphene Brace Graphene Brace Experimental Thermal Shield Thermal Defense Suite Shield Generator System Purifier Long-range Tractor Beam Neutron Cannon Autogun Autogun Autogun Heavy Machine Gun Improved Heavy Machine Gun Improved Heavy Machine Gun Improved Heavy Machine Gun Improved Heavy Machine Gun Improved Heavy Machine Gun Slug Cannon Magnetic Acceleration Cannon Self-destruct Interrupter Self-destruct Interrupter [Rating: 80] Favorites ----------- Power Nuclear Core Engine Improved Deuterium Engine Power Core Nuclear Core Reactor Cold Fusion Reactor Propulsion Light Treads Treads Light Treads Leg Aluminum Leg Wheel Armored Huge Wheel Flight Unit VTOL Module Utility Huge Storage Unit Device Structural Scanner Storage Huge Storage Unit Processor Advanced Targeting Computer Hackware Hacking Suite Protection Medium Armor Plating Weapon Heavy Assault Rifle Energy Gun AWS/Thermal Energy Cannon Neutron Cannon Ballistic Gun Heavy Assault Rifle Ballistic Cannon Slug Cannon Launcher Rocket Array Impact Weapon Great Maul Build | -11 -10 -10 -9 -9 -9 -8 -8 -7 -7 -7 -7 -6 -6 ------- Run | Scr Mat Min Mat Min Exi Min Mat Fac Low Low Dat Pro Fac Slots Evolved 8 | . . . 2 . . . 2 2 . . . . 2 Power . | . . . . . . . . . . . . . . Propulsion 4 | . . . . . . . 2 1 . . . . 1 Utility 3 | . . . 1 . . . . 1 . . . . 1 Weapon 1 | . . . 1 . . . . . . . . . . Parts Attached 258 | 6 4 7 30 4 22 1 22 54 26 11 3 21 47 Power 18 | 1 . 1 2 . 2 . 2 2 3 1 . 1 3 Engine 9 | 1 . 1 . . . . . 1 3 . . 1 2 Core 7 | . . . 2 . 1 . 2 1 . 1 . . . Reactor 2 | . . . . . 1 . . . . . . . 1 Propulsion 60 | 2 . 2 10 . 5 . 5 14 9 3 . 7 3 Treads 36 | 2 . 1 10 . 4 . 5 7 3 2 . 2 . Leg 17 | . . . . . 1 . . 7 4 . . 3 2 Wheel 6 | . . 1 . . . . . . 1 1 . 2 1 Hover . | . . . . . . . . . . . . . . Flight 1 | . . . . . . . . . 1 . . . . Utility 90 | 1 3 1 5 2 10 . 5 21 7 2 . 6 27 Device 51 | . 1 1 1 1 2 . 1 16 6 2 . 5 15 Storage 5 | 1 1 . . 1 . . . 1 . . . . 1 Processor 10 | . . . 1 . 1 . . 2 1 . . 1 4 Hackware 4 | . . . . . . . 3 . . . . . 1 Protection 20 | . 1 . 3 . 7 . 1 2 . . . . 6 Artifact . | . . . . . . . . . . . . . . Weapon 90 | 2 1 3 13 2 5 1 10 17 7 5 3 7 14 Energy Gun 1 | . . . . . . . 1 . . . . . . Energy Cannon 3 | . . . . . . . . . . . . 1 2 Ballistic Gun 51 | 2 . 1 10 1 4 . 6 9 2 1 2 4 9 Ballistic Cannon 7 | . . . . . . . . 1 2 2 . . 2 Launcher 24 | . 1 2 3 1 1 1 1 7 2 2 1 1 1 Special Weapon . | . . . . . . . . . . . . . . Impact Weapon 4 | . . . . . . . 2 . 1 . . 1 . Slashing Weapon . | . . . . . . . . . . . . . . Piercing Weapon . | . . . . . . . . . . . . . . Special Melee Weapon . | . . . . . . . . . . . . . . Unidentified Prototypes 14 | . . . . . 6 . 1 2 . . . 3 2 Parts Lost 86 | . . 5 1 1 10 . 3 18 10 2 . 10 26 Power 11 | . . 1 . . 1 . . 2 1 1 . 1 4 Propulsion 30 | . . 2 . . 2 . . 8 6 1 . 6 5 Utility 19 | . . 1 1 . 4 . 1 5 . . . . 7 Weapon 26 | . . 1 . 1 3 . 2 3 3 . . 3 10 Highest Loss Streak 14 | . . 2 1 1 7 . 2 5 5 2 . 4 14 To Critical Strikes 7 | . . 1 . . 6 . . . . . . . . Average Slot Usage (%) 92 | . 99 99 99 99 98 100 91 84 89 95 72 77 85 Engine 3 | . 14 14 . . . . . 2 6 3 . 5 5 Core 3 | . . . 10 11 8 . 7 2 . 3 7 1 . Treads 19 | . 28 24 21 22 21 22 35 29 8 24 23 7 7 Leg 5 | . . . . . . . . 3 16 3 . 7 16 Wheel 2 | . . 2 . . . . . . 3 5 7 6 5 Device 7 | . 1 8 7 20 9 . 2 5 7 7 7 8 9 Storage 8 | . 14 14 11 11 11 11 9 7 7 7 7 7 6 Processor 7 | . . . 6 . 4 11 1 2 14 15 15 13 9 Hackware 1 | . . . . . . . 12 6 . . . . . Protection 3 | . 12 5 7 1 6 11 1 4 . . . . 2 Ballistic Gun 17 | . 21 14 31 27 30 22 10 11 12 12 2 15 12 Ballistic Cannon 1 | . . . . . . . . 2 3 1 . . . Launcher 3 | . 6 13 1 5 1 10 . 1 4 6 1 1 1 Naked Turns . | . . . . . . . . . . . . . . Heaviest Build 230 | 13 52 55 71 106 120 111 120 119 114 109 109 109 230 Greatest Support 108 | 40 40 40 43 40 46 46 92 108 79 107 28 38 28 Greatest Overweight (x) 36 | 4 1 5 17 2 2 2 1 3 36 6 3 6 8 Average Overweight (x) 2 | . . 2 1 1 2 2 1 1 3 2 3 2 4 Largest Inventory Capacity 35 | 8 20 20 20 25 25 25 25 25 25 25 25 25 35 Average Capacity 24 | 7 19 20 20 24 25 25 25 25 25 25 25 25 29 Most Carried 35 | 4 17 20 20 22 25 25 25 25 25 25 25 25 35 Average Carried 22 | 2 13 17 19 20 21 25 24 22 23 23 25 23 27 Final Capacity 25 | 8 20 20 20 25 25 25 25 25 25 25 25 25 5 Final Carried 25 | 4 17 19 20 22 25 25 25 21 24 25 25 23 5 Class Distribution -------------------- 32% | Scavenger-Mutant 19% | Scavenger-Gunner 19% | Mutant 11% | Tank 9% | Gunner 4% | Scavenger-Tank Dominant Class ---------------- Mutant | -10/Materials Mutant | -10/Mines Gunner | -9/Materials Mutant | -9/Mines Tank | -9/Exiles Scavenger-Mutant | -8/Mines Scavenger-Gunner | -8/Materials Scavenger-Tank | -7/Factory Scavenger-Mutant | -7/Lower Caves Scavenger-Mutant | -7/Lower Caves Scavenger-Mutant | -7/Data Miner Scavenger-Gunner | -6/Proximity Caves Scavenger-Gunner | -6/Factory Resources | -11 -10 -10 -9 -9 -9 -8 -8 -7 -7 -7 -7 -6 -6 ----------- Run | Scr Mat Min Mat Min Exi Min Mat Fac Low Low Dat Pro Fac Matter Collected 8794 | 219 314 270 917 173 875 2 646 2110 1260 595 . 756 657 Remotely 1587 | . . . . . . . . 1264 128 . . . 195 Salvage Created 10181 | . 519 105 1873 174 433 12 1330 2779 1019 626 . 498 813 Parts 625 | . 37 11 109 15 66 2 92 176 33 27 . 17 40 Haulers Intercepted 10 | . 1 . 3 . . . 1 5 . . . . . Recyclers Shooed 7 | . . . 2 . . . . 4 . . . . 1 Parts Field Recycled . | . . . . . . . . . . . . . . Retrieved Matter . | . . . . . . . . . . . . . . Parts Self-Destructed 41 | . . . . . . . . . 16 3 . 22 . Prevented . | . . . . . . . . . . . . . . Kills | -11 -10 -10 -9 -9 -9 -8 -8 -7 -7 -7 -7 -6 -6 ------- Run | Scr Mat Min Mat Min Exi Min Mat Fac Low Low Dat Pro Fac Combat Hostiles Destroyed 219 | . 13 13 36 10 2 3 26 62 15 8 . 10 21 Guns 96 | . 6 . 21 1 1 . 23 22 . 1 . 8 13 Cannons 15 | . . . . . . . . 10 1 1 . . 3 AOE 108 | . 7 13 15 9 1 3 3 30 14 6 . 2 5 Classes Destroyed 24 | . 6 1 5 . 1 . 2 4 2 2 . 1 . Worker 13 | . 1 . 2 . . . . 10 . . . . . Builder 10 | . 1 . 1 . . . 1 7 . . . . . Tunneler 1 | . . . . . . . . 1 . . . . . Hauler 10 | . 1 . 3 . . . 1 5 . . . . . Recycler 7 | . . . 3 . . . . 4 . . . . . Minesweeper 2 | . . . . . . . . . . . . 2 . Operator 2 | . . . 1 . . . . 1 . . . . . Watcher 18 | . 3 . 4 . . . 5 6 . . . . . Swarmer 55 | . 3 6 3 3 . 3 6 11 3 4 . 5 8 Grunt 98 | . 10 4 19 6 . . 10 27 10 2 . 4 6 Brawler 5 | . . . 2 . . . 2 . . . . . 1 Duelist 6 | . . . 2 . . . . 1 1 1 . . 1 Protector 3 | . . . . . . . . 3 . . . . . Sentry 20 | . . . 10 . . . 5 2 . . . 1 2 Specialist 4 | . . . . . . . . 4 . . . . . Hunter 7 | . . . . . . . 2 5 . . . . . Programmer 9 | . . . . . . . . 6 . . . . 3 Heavy 4 | . . . . . . . 1 3 . . . . . Behemoth 1 | . . . . . . . . . 1 . . . . Zionite 8 | . . . . . 8 . . . . . . . . Decomposer 5 | . . . . . . . . . 2 3 . . . Samaritan 4 | . . . . . . . . . . 4 . . . Master Thief 1 | . . . . . . . . . . 1 . . . Assembled 4 | . . 3 . . 1 . . . . . . . . Thug 4 | . . . . . . . . . 3 1 . . . Butcher 2 | . . . . . . . . . 1 1 . . . Mutant 2 | . . . . . . . . . 1 1 . . . Best Kill Streak 13 | . 4 3 7 3 6 3 6 13 4 4 . 4 4 Combat Bots Only 9 | . 3 3 7 3 1 3 6 9 4 4 . 4 4 Max Kills in Single Turn 4 | . 4 2 3 3 1 2 3 4 3 3 . 1 2 Gunslinging 1 | . . . . . . . . . . . . . 1 Exploded 4 | . 3 2 3 3 1 2 3 4 3 3 . 1 2 Melee . | . . . . . . . . . . . . . . Uniques/NPCs Destroyed 5 | . . . . 1 4 . . . . . . . . YI-UF0 (-9/Mines) 8R-AWN (-9/Exiles) EX-DEC (-9/Exiles) EX-BIN (-9/Exiles) EX-HEX (-9/Exiles) Combat | -11 -10 -10 -9 -9 -9 -8 -8 -7 -7 -7 -7 -6 -6 -------- Run | Scr Mat Min Mat Min Exi Min Mat Fac Low Low Dat Pro Fac Damage Taken 14374 | . 538 335 1277 264 1074 36 897 4139 1276 352 . 1056 3130 Core 1526 | . 111 91 105 . 67 . 85 268 156 46 . 139 458 Absorbed by Shields 200 | . . . . 102 28 . . 37 . . . . 33 Redirected to Shielding 68 | . . . . . . . . . . . . . 68 Regen/Repaired (Parts) 128 | . . . . . . . . . . . . . 128 Core Remaining (%) 54 | 100 . 19 . . . 57 84 . . . . 13 . Volleys Fired 723 | . 48 23 76 8 98 3 45 133 119 95 . 27 48 Largest 3 | . 2 2 3 3 3 1 3 3 3 3 . 3 3 Hottest 136 | . 40 40 69 69 76 30 76 88 108 101 . 84 136 Shots Fired 1378 | . 88 24 214 10 148 3 137 282 148 116 . 77 131 Gun 1123 | . 80 2 207 3 146 . 136 205 74 90 . 75 105 Cannon 155 | . . . . . . . . 46 66 21 . . 22 Launcher 100 | . 8 22 7 7 2 3 1 31 8 5 . 2 4 Special . | . . . . . . . . . . . . . . Kinetic 1190 | . 80 2 207 3 146 . 66 246 140 111 . 75 114 Thermal 88 | . . . . . . . 70 5 . . . . 13 Explosive 100 | . 8 22 7 7 2 3 1 31 8 5 . 2 4 Electromagnetic . | . . . . . . . . . . . . . . Robot Hit Streak 25 | . 19 2 17 4 19 2 18 23 16 25 . 11 24 Robot Miss Streak 6 | . 6 1 4 2 5 1 2 4 3 4 . 3 4 Penetration Max 2 | . . . . . 2 . 1 1 . . . . . Secondary Targets 11 | . 1 . 3 . . . . 1 . . . 4 2 Max Gunslinging Chain 1 | . 1 . 1 . . . . 1 . . . 1 1 Autonomous 76 | . . . . . . . 70 6 . . . . . Shots Hit Robots 940 | . 55 2 144 6 94 2 110 204 89 72 . 62 100 Core Hits 561 | . 29 20 77 15 32 3 50 159 64 39 . 26 47 Critical Kills 12 | . . . 1 . 6 . 1 2 . . . . 2 Critical Parts Destroyed 16 | . . . 1 . 10 . 1 1 3 . . . . Critical Strikes 33 | . . . 2 . 17 . 2 6 4 . . . 2 Destroy 30 | . . . 2 . 17 . 2 3 4 . . . 2 Blast 3 | . . . . . . . . 3 . . . . . Melee Attacks 11 | . . . . . . . 10 . . . . 1 . Impact 11 | . . . . . . . 10 . . . . 1 . Slashing . | . . . . . . . . . . . . . . Piercing . | . . . . . . . . . . . . . . Sneak Attacks . | . . . . . . . . . . . . . . Combat Hostiles . | . . . . . . . . . . . . . . Follow-up Attacks . | . . . . . . . . . . . . . . Damage Inflicted 29596 | . 1129 895 3127 646 1601 210 2590 10602 3368 1571 . 1358 2499 Guns 15152 | . 591 15 2067 25 1521 . 2458 3422 1197 1094 . 1197 1565 Cannons 2962 | . . . . . . . . 1421 981 60 . . 500 Explosions 11346 | . 523 858 1021 585 80 210 127 5756 1190 417 . 161 418 Melee . | . . . . . . . . . . . . . . Ramming 136 | . 15 22 39 36 . . 5 3 . . . . 16 Kinetic 16007 | . 591 15 2067 25 1521 . 728 4782 2178 1154 . 1197 1749 Thermal 2330 | . . . . . . . 1730 247 . . . . 353 Explosive 11027 | . 523 858 1021 585 80 210 127 5474 1190 417 . 161 381 Electromagnetic 96 | . . . . . . . . 96 . . . . . Impact . | . . . . . . . . . . . . . . Slashing . | . . . . . . . . . . . . . . Piercing . | . . . . . . . . . . . . . . Highest Corruption 10 | . . . . . . . 4 4 4 4 4 4 10 Average Corruption 3 | . . . . . . . 4 3 4 4 4 4 1 Corruption Purged . | . . . . . . . . . . . . . . Corruption Blocked . | . . . . . . . . . . . . . . Effects 275 | . . . . . . . 32 34 102 51 3 45 8 Message Errors 64 | . . . . . . . 7 8 19 12 1 14 3 Matter Fused 56 | . . . . . . . 9 7 22 10 1 7 . Heat Flow Errors 46 | . . . . . . . 5 3 19 8 . 10 1 Energy Discharges 42 | . . . . . . . 4 8 15 7 . 5 3 Parts Rejected 1 | . . . . . . . . . 1 . . . . Data Loss (minor) 28 | . . . . . . . 4 2 10 7 . 5 . Data Loss (major) 16 | . . . . . . . 1 1 7 3 . 3 1 Misfires 12 | . . . . . . . . 3 7 2 . . . Alerts 7 | . . . . . . . 2 . 2 1 1 1 . Weapon Failures 3 | . . . . . . . . 2 . 1 . . . Overload Shots . | . . . . . . . . . . . . . . Overflow Damage 615 | . 24 54 3 1 . . . 490 28 3 . . 12 Projectiles 168 | . . . . . . . . 145 18 . . . 5 Explosions 447 | . 24 54 3 1 . . . 345 10 3 . . 7 Melee . | . . . . . . . . . . . . . . Knockbacks 17 | . 1 . . . . . . 9 2 1 . . 4 Impact 1 | . 1 . . . . . . . . . . . . Kinetic 16 | . . . . . . . . 9 2 1 . . 4 Secondary . | . . . . . . . . . . . . . . Self-Inflicted Damage 1355 | . 21 150 157 138 . 30 . 466 220 154 . . 19 Shots 43 | . 2 6 3 3 . 1 . 11 9 7 . . 1 Rammed 17 | . 2 2 4 5 . . 1 2 . . . . 1 Targets Rammed 19 | . 3 2 5 5 . . 1 2 . . . . 1 Kicked . | . . . . . . . . . . . . . . Crushed 2 | . 1 . 1 . . . . . . . . . . Highest Temperature 420 | . 26 24 102 6 108 . 262 206 277 262 . 255 420 Average Temperature 54 | . 8 8 19 3 32 . 101 25 94 78 . 76 113 Received Heat Transfer 2631 | . 228 69 453 40 . . 117 579 153 36 . 240 716 Effects 3 | . . . . . . . 2 . . . . . 1 Energy Bleed 2 | . . . . . . . 2 . . . . . . Matter Decay 1 | . . . . . . . . . . . . . 1 Siege Activations . | . . . . . . . . . . . . . . Robots Corrupted . | . . . . . . . . . . . . . . Combat Hostiles . | . . . . . . . . . . . . . . Parts Fried 1 | . . . . . . . . 1 . . . . . Impact Corruptions . | . . . . . . . . . . . . . . Robots Melted . | . . . . . . . . . . . . . . Combat Hostiles . | . . . . . . . . . . . . . . Parts Melted 2 | . . . . . . . 2 . . . . . . Heat Transferred 2457 | . . . . . . . 2183 224 . . . . 50 Parts Sabotaged . | . . . . . . . . . . . . . . Parts Stolen 3 | . . . . . . . . . . 3 . . . Parts Stripped . | . . . . . . . . . . . . . . Power Chain Reactions 1 | . . . . . . . . . . . . . 1 Missiles Intercepted . | . . . . . . . . . . . . . . Alert | -11 -10 -10 -9 -9 -9 -8 -8 -7 -7 -7 -7 -6 -6 ------- Run | Scr Mat Min Mat Min Exi Min Mat Fac Low Low Dat Pro Fac Peak Influence 1685 | . 237 150 499 286 . 93 394 1685 . . . . 237 Initial 179 | . . 48 14 141 . . 35 179 . . . . . Average 246 | . 97 46 237 73 . 82 231 694 . . . . 105 Maximum Alert Level 5 | . 1 . 2 1 . . 1 5 . . . . 1 Low Security (%) 61 | 100 86 100 46 77 . 100 37 20 . . . . 89 Level 1 22 | . 13 . 33 22 . . 62 15 . . . . 10 Level 2 8 | . . . 20 . . . . 23 . . . . . Level 3 1 | . . . . . . . . 8 . . . . . Level 4 5 | . . . . . . . . 26 . . . . . Level 5 . | . . . . . . . . 5 . . . . . High Security . | . . . . . . . . . . . . . . Max Security . | . . . . . . . . . . . . . . Squads Dispatched 32 | . 3 . 7 . . . 3 15 . . . . 4 Investigation 9 | . 3 . 2 . . . 2 2 . . . . . Extermination 8 | . . . . . . . . 5 . . . . 3 Reinforcement 13 | . . . 4 . . . 1 7 . . . . 1 Assault 2 | . . . 1 . . . . 1 . . . . . Garrison . | . . . . . . . . . . . . . . Intercept . | . . . . . . . . . . . . . . Construction Impeded 3 | . . . . . . . 1 2 . . . . . Haulers Reinforced 2 | . . . . . . . . 2 . . . . . Active Scanning Responses . | . . . . . . . . . . . . . . Cargo Convoy Interrupts 1 | . . . . . . . . 1 . . . . . Stealth | -11 -10 -10 -9 -9 -9 -8 -8 -7 -7 -7 -7 -6 -6 --------- Run | Scr Mat Min Mat Min Exi Min Mat Fac Low Low Dat Pro Fac Distress Signals 10 | . 1 . 4 . . . 2 2 . . . . 1 Communications Jammed 27 | . . . . . . . 21 6 . . . . . Distress Signals 18 | . . . . . . . 16 2 . . . . . Times Spotted 316 | . 17 14 53 8 24 3 33 85 17 10 . 18 34 Peak Tracking Total 12 | . 4 3 6 3 6 3 4 12 4 4 . 4 5 Tactical Retreats 28 | . . 1 1 . 9 . . 4 3 . . 6 4 Traps | -11 -10 -10 -9 -9 -9 -8 -8 -7 -7 -7 -7 -6 -6 ------- Run | Scr Mat Min Mat Min Exi Min Mat Fac Low Low Dat Pro Fac Traps Triggered 3 | . . . . . . . 1 . 1 . . . 1 Indirectly . | . . . . . . . . . . . . . . Trap Hack Attempts . | . . . . . . . . . . . . . . Triggered . | . . . . . . . . . . . . . . Disarmed . | . . . . . . . . . . . . . . Reprogrammed . | . . . . . . . . . . . . . . Reused 3 | . . . 1 . 2 . . . . . . . . Traps Extracted . | . . . . . . . . . . . . . . Installed 4 | . . . 1 . 3 . . . . . . . . Triggered 2 | . . . 1 . . . . . . . . 1 . Most Traps Carried 4 | . . 4 4 3 3 . . . . . . 2 . Machines | -11 -10 -10 -9 -9 -9 -8 -8 -7 -7 -7 -7 -6 -6 ---------- Run | Scr Mat Min Mat Min Exi Min Mat Fac Low Low Dat Pro Fac Machines Disabled 39 | . . 2 3 4 16 . 2 10 . 1 . . 1 Max in Single Turn 6 | . . 1 1 3 1 . 1 6 . 1 . . 1 Garrison Access 1 | . . . . . . . 1 . . . . . . Machines Sabotaged . | . . . . . . . . . . . . . . Garrisons Compromised . | . . . . . . . . . . . . . . Overloaded Fab Kills . | . . . . . . . . . . . . . . Hacking | -11 -10 -10 -9 -9 -9 -8 -8 -7 -7 -7 -7 -6 -6 --------- Run | Scr Mat Min Mat Min Exi Min Mat Fac Low Low Dat Pro Fac Machines Accessed 48 | . 8 1 9 1 2 . 10 7 1 1 4 . 4 Terminals 25 | . 6 1 5 1 . . 6 5 . . . . 1 Fabricators 1 | . . . . . . . . . . . . . 1 Repair Stations 1 | . . . . . . . . . . . . . 1 Recycling Units 7 | . 2 . 2 . . . 1 2 . . . . . Scanalyzers 5 | . . . 2 . . . 2 . . . . . 1 Garrison Access 1 | . . . . . . . 1 . . . . . . Total Hacks 149 | . 27 1 21 3 2 . 34 18 1 1 31 . 10 Successful 95 | . 15 . 11 1 2 . 20 6 1 1 31 . 7 Failed 54 | . 12 1 10 2 . . 14 12 . . . . 3 Catastrophic 3 | . . 1 1 . . . . 1 . . . . . Database Lockouts . | . . . . . . . . . . . . . . Manual 64 | . 22 . 8 3 1 . 17 9 . . . . 4 Terminals 72 | . 23 1 13 3 . . 15 13 . . . . 4 Fabricators 3 | . . . . . . . . . . . . . 3 Repair Stations 1 | . . . . . . . . . . . . . 1 Recycling Units 17 | . 4 . 6 . . . 2 5 . . . . . Scanalyzers 17 | . . . 2 . . . 13 . . . . . 2 Garrison Access 4 | . . . . . . . 4 . . . . . . Terminal Hacks 57 | . 6 . 6 1 2 . 5 3 1 1 31 . 1 Record 14 | . . . 1 . 1 . 1 . . . 11 . . Part Schematic 13 | . 1 . . . . . . . . . 12 . . Robot Schematic 6 | . . . . . . . . 1 . . 5 . . Robot Analysis 5 | . 3 . . . . . 2 . . . . . . Prototype ID Bank 5 | . 1 . 1 . . . . . . . 3 . . Open Door 2 | . . . . . . . . . 1 1 . . . Terminal Index 4 | . 1 . . . . . 1 1 . . . . 1 Alert Level 2 | . . . 1 . . . 1 . . . . . . Unreport Threat 3 | . . . 2 1 . . . . . . . . . Locate Traps 2 | . . . 1 . . . . 1 . . . . . EX-Prototype ID Bank 1 | . . . . . 1 . . . . . . . . Fabricator Hacks 3 | . . . . . . . . . . . . . 3 Network Status 1 | . . . . . . . . . . . . . 1 Load Schematic 1 | . . . . . . . . . . . . . 1 Build 1 | . . . . . . . . . . . . . 1 Repair Station Hacks . | . . . . . . . . . . . . . . Recycling Unit Hacks 5 | . 2 . 2 . . . . 1 . . . . . Retrieve Components 5 | . 2 . 2 . . . . 1 . . . . . Scanalyzer 12 | . . . . . . . 10 . . . . . 2 Insert Component 7 | . . . . . . . 6 . . . . . 1 Analyze 5 | . . . . . . . 4 . . . . . 1 Garrison Access Hacks 1 | . . . . . . . 1 . . . . . . Seal Access 1 | . . . . . . . 1 . . . . . . Unauthorized Hacks 17 | . 7 . 3 . . . 4 2 . . . . 1 Terminals 9 | . 5 . 1 . . . 2 . . . . . 1 Botnet 6 | . 4 . 1 . . . 1 . . . . . . Operators 3 | . 1 . . . . . 1 . . . . . 1 Fabricators . | . . . . . . . . . . . . . . Repair Stations . | . . . . . . . . . . . . . . Recycling Units 7 | . 2 . 2 . . . 1 2 . . . . . Tunnel 7 | . 2 . 2 . . . 1 2 . . . . . Scanalyzers . | . . . . . . . . . . . . . . Garrison Access 1 | . . . . . . . 1 . . . . . . Watchers 1 | . . . . . . . 1 . . . . . . Data Cores Recovered . | . . . . . . . . . . . . . . Used . | . . . . . . . . . . . . . . Hacking Detections 37 | . 7 1 8 1 . . 10 7 . . . . 3 Full Trace Events 1 | . 1 . . . . . . . . . . . . Feedback Events . | . . . . . . . . . . . . . . Feedback Blocked . | . . . . . . . . . . . . . . Robot Schematics Acquired 6 | . . . . . . . . 1 . . 5 . . Robots Built . | . . . . . . . . . . . . . . Authchips . | . . . . . . . . . . . . . . Time . | . . . . . . . . . . . . . . Total Robot Build Rating . | . . . . . . . . . . . . . . Part Schematics Acquired 16 | . 1 . . . . . 3 . . . 12 . . Parts Built 1 | . . . . . . . . . . . . . 1 Authchips 1 | . . . . . . . . . . . . . 1 Time 76 | . . . . . . . . . . . . . 76 Total Part Build Rating 5 | . . . . . . . . . . . . . 5 Parts Repaired . | . . . . . . . . . . . . . . Time . | . . . . . . . . . . . . . . Parts Recycled . | . . . . . . . . . . . . . . Recycled Matter . | . . . . . . . . . . . . . . Retrieved Matter . | . . . . . . . . . . . . . . Retrieved Components 42 | . 12 . 20 . . . . 10 . . . . . Parts Scanalyzed 5 | . . . . . . . 4 . . . . . 1 Part Schematics Acquired 3 | . . . . . . . 3 . . . . . . Parts Damaged 1 | . . . . . . . 1 . . . . . . Bothacking | -11 -10 -10 -9 -9 -9 -8 -8 -7 -7 -7 -7 -6 -6 ------------ Run | Scr Mat Min Mat Min Exi Min Mat Fac Low Low Dat Pro Fac Used RIF Installer . | . . . . . . . . . . . . . . Robots Hacked . | . . . . . . . . . . . . . . Non-combat . | . . . . . . . . . . . . . . Combat . | . . . . . . . . . . . . . . Robot Hacks Applied . | . . . . . . . . . . . . . . Relay Couplers Released 3 | . . . . . . . . . . . . . 3 Programmers 3 | . . . . . . . . . . . . . 3 Fabnet Peak Effective % . | . . . . . . . . . . . . . . Robots Rewired . | . . . . . . . . . . . . . . Allies Hacked . | . . . . . . . . . . . . . . Hacks Repelled . | . . . . . . . . . . . . . . Allies | -11 -10 -10 -9 -9 -9 -8 -8 -7 -7 -7 -7 -6 -6 -------- Run | Scr Mat Min Mat Min Exi Min Mat Fac Low Low Dat Pro Fac Total Allies 1 | . . . . . . . . . . . . 1 . Largest Group 1 | . . . . . . . . . . . . 1 . Highest-Rated Group 96 | . . . . . . . . . . . . 96 . Highest-Rated Ally 96 | . . . . . . . . . . . . 96 . Total Orders . | . . . . . . . . . . . . . . Ally Attacks 27 | . . . . . . . . . 11 . . 16 . Total Damage 923 | . . . . . . . . . 546 . . 377 . Kills 3 | . . . . . . . . . . . . 3 . Allies Corrupted . | . . . . . . . . . . . . . . Allies Melted . | . . . . . . . . . . . . . . Turrets Deployed 1 | . . . . . . . . . 1 . . . . Intel | -11 -10 -10 -9 -9 -9 -8 -8 -7 -7 -7 -7 -6 -6 ------- Run | Scr Mat Min Mat Min Exi Min Mat Fac Low Low Dat Pro Fac Robot Analysis Total 5 | . 3 . . . . . 2 . . . . . . Derelict Logs Recovered 9 | . . 2 . 2 . . . . 1 2 . 2 . Drone Launches . | . . . . . . . . . . . . . . Drone Recoveries . | . . . . . . . . . . . . . . Exploration | -11 -10 -10 -9 -9 -9 -8 -8 -7 -7 -7 -7 -6 -6 ------------- Run | Scr Mat Min Mat Min Exi Min Mat Fac Low Low Dat Pro Fac Turns Passed 26868 | 89 1506 1377 2448 1777 2603 344 1861 2643 5388 2660 133 2293 1746 Spaces Moved 10252 | 51 560 506 876 547 696 106 674 870 1731 1461 88 1298 788 Core 59 | 17 . . 1 . . . . . 41 . . . . Treads 5740 | 34 560 333 842 547 696 106 674 797 714 437 . . . Legs 848 | . . . . . . . . 73 687 . . 88 . Wheels 3605 | . . 173 33 . . . . . 289 1024 88 1210 788 Hover . | . . . . . . . . . . . . . . Flight . | . . . . . . . . . . . . . . Fastest Speed 50 | 50 160 155 155 240 320 320 240 162 175 145 145 120 145 Average Speed 229 | 150 234 211 237 317 320 320 243 242 280 166 145 164 172 Slowest Speed 1850 | 250 240 320 900 320 320 320 245 330 1850 240 145 540 220 Overloaded Moves . | . . . . . . . . . . . . . . Propulsion Burnouts . | . . . . . . . . . . . . . . Robots Hopped . | . . . . . . . . . . . . . . Cave-ins Triggered 1 | . . . . . . . 1 . . . . . . Exploration Rate (%) 71 | 4 97 98 90 94 89 40 67 36 98 98 68 98 25 Regions Visited 13 Branch Regions 8 Pre-discovered Areas 10 | . 2 1 2 . 1 . 1 2 . . 1 . . Known Exits Taken 3 | . . . . . . 1 1 . . . . 1 . Unknown Exits Taken 10 | 1 1 1 1 1 1 . . 1 1 1 1 . . Scrap Searched 15 | . . 1 . 3 . . . . 4 4 . 3 . Spaces Dug 103 | . 11 61 . . . . 6 13 7 2 . 1 2 Terrain Destroyed 1161 | . 44 145 70 80 20 30 32 350 204 112 . 39 35 Melee 7 | . . . . . . . 6 . . . . 1 . Projectile 96 | . . . . . 7 . 12 28 36 7 . . 6 AOE 1058 | . 44 145 70 80 13 30 14 322 168 105 . 38 29 Terrain Rammed . | . . . . . . . . . . . . . . Walls Destroyed . | . . . . . . . . . . . . . . Machines Disabled . | . . . . . . . . . . . . . . Actions | -11 -10 -10 -9 -9 -9 -8 -8 -7 -7 -7 -7 -6 -6 --------- Run | Scr Mat Min Mat Min Exi Min Mat Fac Low Low Dat Pro Fac Total 12429 | 60 668 787 1088 567 936 109 816 1126 2125 1594 93 1387 1073 Wait 883 | . 41 243 41 . 80 . 36 37 229 9 . 24 143 Move 10239 | 50 559 505 875 546 695 105 673 869 1730 1460 87 1297 788 Hop . | . . . . . . . . . . . . . . Pick Up 149 | 4 12 7 23 3 20 . 14 14 8 10 . 10 24 Fast Attach 86 | 6 1 . 10 . 6 . 4 19 15 3 3 7 12 Attach 77 | . 1 5 6 1 12 . 7 14 5 3 . 5 18 Detach 26 | . 1 . 1 . 4 . 1 4 3 1 . . 11 Swap 95 | . 2 2 14 3 4 1 11 21 6 5 . 9 17 Drop 117 | . . . 36 1 14 . 14 13 10 8 3 7 11 Fire 723 | . 48 23 76 8 98 3 45 133 119 95 . 27 48 Melee 11 | . . . . . . . 10 . . . . 1 . Ram 2 | . . 1 . . . . . . . . . . 1 Kick . | . . . . . . . . . . . . . . Crush 17 | . 3 1 5 5 . . 1 2 . . . . . Escape Stasis . | . . . . . . . . . . . . . . Rewire . | . . . . . . . . . . . . . . Trap 4 | . . . 1 . 3 . . . . . . . . Miscellaneous . | . . . . . . . . . . . . . . Route ------- -11/Scrapyard -10/Materials (discovered 4 exits: *Mat x3 / *Min) -10/Mines (discovered 2 exits: *Mat x2) -9/Materials (discovered 4 exits: *Mat x3 / *Min) -9/Mines (discovered 3 exits: *Mat x2 / *Exi) -9/Exiles (discovered 2 exits: [*Min x2]) -8/Mines -8/Materials (discovered 3 exits: *Fac x3) -7/Factory (discovered 3 exits: *Fac x2 / *Low) -7/Lower Caves (discovered 2 exits: *Low / *Dat) -7/Lower Caves (discovered 2 exits: *Fac / *Dat) -7/Data Miner -6/Proximity Caves -6/Factory (discovered 4 exits: *Fac x3 / *Low) History --------- Turn | Location | Event 28 | -11/Scrapyard | Discovered new exit (range 14) 90 | -11/Scrapyard | Entered Materials 304 | -10/Materials | Build established: Mutant 719 | -10/Materials | Discovered new exit (range 12) 769 | -10/Materials | Discovered new exit (range 11) 1121 | -10/Materials | Discovered new exit (range 15) 1457 | -10/Materials | Discovered new exit (range 16) 1596 | -10/Materials | Entered Mines 1597 | -10/Mines | Assembled infested the area 2080 | -10/Mines | Received a Rocket Launcher from a helpful Derelict 2185 | -10/Mines | Discovered new exit (range 12) 2188 | -10/Mines | Core integrity fell below 50% 2280 | -10/Mines | Discovered new exit (range 9) 2321 | -10/Mines | Learned location of Storage (-7) 2439 | -10/Mines | Found a hidden stash of uninstalled traps 2498 | -10/Mines | Learned location of 2 exits from Materials 2680 | -10/Mines | Core integrity fell below 20% 2973 | -10/Mines | Entered Materials 2973 | -9/Materials | Evolved 2 slots: Utility x1, Weapon x1 2974 | -9/Materials | Identified exit to Materials 3334 | -9/Materials | Build established: Gunner 4212 | -9/Materials | Destroyed 7 combat bots 4790 | -9/Materials | Build established: Tank 4973 | -9/Materials | First assault squad dispatched 5111 | -9/Materials | Discovered exit to Materials (range 3) 5308 | -9/Materials | Discovered new exit (range 16) 5421 | -9/Materials | Entered Mines 5485 | -9/Mines | Build established: Mutant 5496 | -9/Mines | Met a Derelict bent on vengeance 6014 | -9/Mines | Learned location of 1 exit from Materials 6037 | -9/Mines | Deemed a non-threat by the Exiles lab entrance 6037 | -9/Mines | Discovered new exit (range 6) 6380 | -9/Mines | Destroyed YI-UF0 6476 | -9/Mines | Learned location of 1 exit from Materials 6684 | -9/Mines | Build established: Tank 6718 | -9/Mines | Discovered exit to Materials (range 9) 6906 | -9/Mines | Discovered exit to Materials (range 5) 7198 | -9/Mines | Entered Exiles 7246 | -9/Exiles | Discovered new exit (range 15) 7285 | -9/Exiles | Met 8R-AWN 7330 | -9/Exiles | Met EX-HEX 7449 | -9/Exiles | Met EX-DEC 7507 | -9/Exiles | Learned location of Zion (-6) 7699 | -9/Exiles | Met EX-BIN 7744 | -9/Exiles | Aligned with FarCom system 7747 | -9/Exiles | Given EX-Vault access code 7824 | -9/Exiles | Opened EX-Vault 7846 | -9/Exiles | Found 0b10 Alert Chip 7860 | -9/Exiles | Found Superbattery 7867 | -9/Exiles | Found AWS/Thermal 7929 | -9/Exiles | Warned to stay clear of 0b10 Research branches 8475 | -9/Exiles | Attacked by the Exiles 8627 | -9/Exiles | Lost 7 parts (1n3u3w) 8670 | -9/Exiles | Destroyed 8R-AWN 8676 | -9/Exiles | Found Prototype Ballistic Gun 8676 | -9/Exiles | Identified 8R-AWN's Boregun 8682 | -9/Exiles | Found Prototype Processor 8682 | -9/Exiles | Identified Exp. Targeting Computer 8697 | -9/Exiles | Lost 3 parts (1p1n1u) 8931 | -9/Exiles | Destroyed EX-DEC 8937 | -9/Exiles | Destroyed EX-BIN 9125 | -9/Exiles | Found Deploy-a-Sentry 9139 | -9/Exiles | Build established: Scavenger-Mutant 9152 | -9/Exiles | Destroyed EX-HEX 9195 | -9/Exiles | Found Prototype Device 9195 | -9/Exiles | Identified System Purifier 9762 | -9/Exiles | Build established: Scavenger-Gunner 9775 | -9/Exiles | Discovered new exit (range 10) 9801 | -9/Exiles | Stole four prototypes: Superbattery, 0b10 Alert Chip, AWS/Thermal, Deploy-a-Sentry 9801 | -9/Exiles | Entered Mines 10113 | -8/Mines | Discovered exit to Materials (range 10) 10124 | -8/Mines | Build established: Scavenger-Mutant 10145 | -8/Mines | Entered Materials 10145 | -8/Materials | Evolved 2 slots: Propulsion x2 10146 | -8/Materials | Identified exit to Factory 10401 | -8/Materials | Crushed by falling debris 11439 | -8/Materials | Build established: Scavenger-Gunner 11519 | -8/Materials | Discovered exit to Factory (range 5) 12006 | -8/Materials | Entered Factory 12006 | -7/Factory | Evolved 2 slots: Propulsion x1, Utility x1 12827 | -7/Factory | Cargo convoy interrupted 12872 | -7/Factory | Destroyed 9 combat bots 12875 | -7/Factory | Lost 4 parts (1p1n1u1w) 12978 | -7/Factory | Destroyed 7 combat bots 13468 | -7/Factory | Build established: Scavenger-Tank 13808 | -7/Factory | Discovered new exit (range 16) 13855 | -7/Factory | Lost 5 parts (1p2n1u1w) 13876 | -7/Factory | Identified exit to Factory 14006 | -7/Factory | First assault squad dispatched 14073 | -7/Factory | Discovered exit to Factory (range 7) 14263 | -7/Factory | Found Prototype Launcher 14263 | -7/Factory | Identified Rocket Array 14370 | -7/Factory | Build established: Scavenger-Gunner 14460 | -7/Factory | Discovered new exit (range 9) 14534 | -7/Factory | Destroyed 7 combat bots 14649 | -7/Factory | Entered Lower Caves 14748 | -7/Lower Caves | Encountered a Warlord checkpoint 15126 | -7/Lower Caves | Spotted B-75 Beast 15529 | -7/Lower Caves | Build established: Scavenger-Mutant 16693 | -7/Lower Caves | Core integrity fell below 50% 16716 | -7/Lower Caves | DAS Turret deployed 16728 | -7/Lower Caves | Lost 5 parts (1p3n1w) 16737 | -7/Lower Caves | Destroyed B-75 Beast 16996 | -7/Lower Caves | Build established: Gunner 17674 | -7/Lower Caves | Build established: Scavenger-Mutant 18085 | -7/Lower Caves | Learned Factory stockpile data 18552 | -7/Lower Caves | A Derelict revealed a hidden shortcut to meet someone special 19585 | -7/Lower Caves | Discovered new exit (range 10) 20037 | -7/Lower Caves | Entered another Lower Caves area 20507 | -7/Lower Caves | Discovered exit to Factory (range 8) 20508 | -7/Lower Caves | Encountered a Warlord checkpoint 20614 | -7/Lower Caves | Learned Factory security intel 20977 | -7/Lower Caves | Spotted R1-8OX(f) 20979 | -7/Lower Caves | Encountered a Master Thief 20983 | -7/Lower Caves | Superbattery stolen by Master Thief 20988 | -7/Lower Caves | Destroyed R1-8OX(f) 20997 | -7/Lower Caves | Spotted 4X-U84(f) 20997 | -7/Lower Caves | Spotted ZE-ZJ2(f) 20998 | -7/Lower Caves | Encountered a Master Thief 20998 | -7/Lower Caves | Encountered a Master Thief 21001 | -7/Lower Caves | 0b10 Alert Chip stolen by Master Thief 21003 | -7/Lower Caves | Adv. Weapon Cycler stolen by Master Thief 21645 | -7/Lower Caves | Learned 4 Factory zone layouts 21728 | -7/Lower Caves | Discovered new exit (range 4) 22697 | -7/Lower Caves | Entered Data Miner 22697 | -7/Data Miner | Discovered new exit (range 6) 22727 | -7/Data Miner | Met Data Miner 22753 | -7/Data Miner | Learned location of Section 7 (-3) 22753 | -7/Data Miner | Acquired the access code to Warlord's prototype stash 22777 | -7/Data Miner | Received God Mode back door access code from Data Miner 22830 | -7/Data Miner | Entered Proximity Caves 23015 | -6/Proximity Caves | Escorted by Enhanced Grunt 23049 | -6/Proximity Caves | Lost 3 parts (1n2w) 23330 | -6/Proximity Caves | Lost 4 parts (1p2n1w) 23602 | -6/Proximity Caves | Build established: Mutant 23753 | -6/Proximity Caves | Found Prototype Device 23753 | -6/Proximity Caves | Identified Exp. Thermal Shield 24036 | -6/Proximity Caves | Build established: Scavenger-Gunner 24199 | -6/Proximity Caves | Core integrity fell below 20% 24291 | -6/Proximity Caves | Learned location of 1 exit from Factory 24373 | -6/Proximity Caves | Discovered exit to Factory (range 12) 24519 | -6/Proximity Caves | Learned Factory non-interactive machine intel 24563 | -6/Proximity Caves | Build established: Gunner 24632 | -6/Proximity Caves | Attracted the attention of an 0b10 checkpoint 24943 | -6/Proximity Caves | Build established: Scavenger-Gunner 25123 | -6/Proximity Caves | Entered Factory 25123 | -6/Factory | Evolved 2 slots: Propulsion x1, Utility x1 25124 | -6/Factory | Identified exit to Lower Caves 25125 | -6/Factory | Identified exit to Factory 25128 | -6/Factory | Loaded intel: 199 non-interactive machine locations 25552 | -6/Factory | Fabricated Lgt. Regenerative Plating (x1) 26644 | -6/Factory | Build established: Hauler-Mutant 26694 | -6/Factory | Discovered exit to Factory (range 7) 26860 | -6/Factory | Core integrity fell below 50% 26861 | -6/Factory | System corruption reached 10% 26869 | -6/Factory | Self-destructed Last Messages --------------- 26851_ Imp. Heavy Machine Gun severed. 26851_ L-41 Fighter destroyed. 26852_ Acquired 50 matter. 26859_ Destroyed Antigrav System. 26861_ P-70 Sage destroyed. 26861_ Switching to secondary target: G-50 Soldier. 26862_ R-10 Processor collects Antigrav System. 26865_ R-10 Processor collects Unknown Hackware. 26865_ Humpback destroyed. 26865_ Structural Scanner crushed and broken. 26865_ Graphene Brace crushed and broken. 26865_ Imp. Heavy Machine Gun crushed and broken. 26865_ Superbattery crushed and broken. 26865_ Magnetic Acceleration Cannon crushed and broken. 26865_ Imp. Heavy Machine Gun crushed and broken. 26865_ Autogun crushed and broken. 26866_ System corrupted: Substantial component data lost. 26868_ R-10 Processor collects Huge Storage Unit. 26869_ Self-destruct Interrupter emitting active interruption sequence. 26869_ Enh. Flexi-carbon Leg destroyed. Map ----- +----------------------------------------------------+ | ??????????????##### # | | ?######??????????## ################## # | | ### ##?????????## # ### # # | | ###""###?????????## # """ """ ##### # | | ### #########????## # """ """ + # | | ####### #! """ """ ######/#### | | """" + # ## ## | | !! """" ####### # """ """ ## ## | | !! """" ##??### # """ """ ## " # | | ! """" ##???# # """ """ ## " # | | """" ##??##T # ## """ # | | """" #???### # ## """" !# | | #???### # ## """" # | | #????## /= ## """" # | | "" "" #????## ############### """" # | | ""S"" #????## # ### ??? # | | """" ###??## #?? ### ??? ## | | ###+############### #? ######???### | | g #? ######?????? | | # #??????????? | | *# #??????????? | | R/ #??????????? | | !pg%# #??"""?"""?? | | !&!/# #??"""?"""?? | | [![#? #??"""?"""?? | | ###+#################+###@#? #??????????? | | ## ??????!!&#?? #??"""?"""?? | | ?? ????????????????? !""[#?? #??"""?"""?? | | ??? """?"""????"""? """!#???#########??"""?"""?? | | ??? """?"""????""" R"!#??????????????????????? | | ??? """?"""????""" """*#??????????????????????? | | ??? ??????????? "" #??????????????????????? | | ??? """?"""????""" """? #??????????????????????? | | ????"""?"""??? """?"""?? #??????????????????????? | | ????"""?"""????"""?"""?? ???????????????????????? | | ???????????????????????? ???????????????????????? | | ???????????????????????? ???????????????????????? | | ???????????????????????? ???????????????????????? | | ????????????????????????##???????????????????????? | | ?????????????????????????????????????????????????? | | ?????????????????????????????????????????????????? | | ?????????????????????????????????????????????????? | | ?????????????????????????????????????????????????? | | ?????????????????????????????????????????????????? | | ?????????????????????????????????????????????????? | | ????????????????????????????????????"""?"""??????? | | ????????????????????????????????????"""?"""??????? | | ????????????????????????????????????"""?"""??????? | | ?????????????????????????????????????????????????? | | ????????????????????????????????????"""?"""??????? | +----------------------------------------------------+ Best States ------------- Heat Dissipation 56 Energy Generation 21 Energy Capacity 325 Matter Stores 300 Matter Capacity 300 Sight Range 22 Terrain Scan Density 10 Jamming Range 16 Cloak Strength 3 Armor Coverage 600 Resistance: TH 30 Weapon Shielding 66 Evasion (%) 50 Targeting Accuracy 12 Launcher Accuracy 20 Target Analysis 6 Recoil Reduction 7 Matter Filtering 30 Offensive Hacking 17 Authchip Count 1 Item Schematics ----------------- Huge Storage Unit | -10/Materials | Hacked System Purifier | -8/Materials | Scanalyzed Structural Scanner | -8/Materials | Scanalyzed Adv. Transmission Jammer | -8/Materials | Scanalyzed Combat Drone Bay | -7/Data Miner | Free Lgt. Regenerative Plating | -7/Data Miner | Free Biomechanical Wings | -7/Data Miner | Free Gravity Neutralizer | -7/Data Miner | Free Antigrav System | -7/Data Miner | Free Antimatter Cannon | -7/Data Miner | Free Energy Well | -7/Data Miner | Free Rnf. Antimatter Reactor | -7/Data Miner | Free Disruptor Cannon | -7/Data Miner | Free Imp. Transmission Jammer | -7/Data Miner | Free Imp. Arc Projector | -7/Data Miner | Free Neutrino Core | -7/Data Miner | Free Robot Schematics ------------------ L-31 Rogue | -7/Factory | Hacked R-10 Processor | -7/Data Miner | Free P-60 Hacker | -7/Data Miner | Free H-55 Commando | -7/Data Miner | Free C-17 Slicer | -7/Data Miner | Free E-15 Imp | -7/Data Miner | Free Fabricated ------------ Lgt. Regenerative Plating | x1 | -6/Factory | Authchip Alien Tech Used ----------------- None Achievements -------------- None Challenges ------------ None Game ------ Seed KineticSegregatorPropulsion Manual? 0 Play Time 01:43:27 Cumulative 194.2 hours Start 2022.03.04 @ 05:25:34 End 2022.03.05 @ 20:01:52 Sessions 5 Manual Loads 0 Difficulty Rogue Special Mode None Game No. 298 Rogue 276 Adventurer 4 Explorer 18 Win Type - Total 10 Types 8/0/0/2/0/0/0/0/0 Lore% 68 Gallery% 85 Achievement% 70 Wizard Run 0 Options --------- ASCII 0 Keyboard 1 Movement Numpad Keybinds 0 Fullscreen 1 Font 18/SmallcapsGlow Map View 76x50 Tactical HUD 1 Map Filters NONE Filters NONE Steam 1 RUN: 85183e88-b85b-47ca-a097-808ea370aee3